bitfinex/quotes_SOLUSD_20220210
["timestamp","ask_amount","ask_price","bid_price","bid_amount"]
[1644464023714,1.2315261,111.39,111.35,13.4719]
[1644464024515,14.7034261,111.4,111.35,13.4719]
[1644464024714,14.7034261,111.4,111.36,44.37199656]
[1644464025417,1.2315261,111.4,111.36,57.84309656]
[1644464026217,1.2315261,111.4,111.36,13.4711]
[1644464027117,86.27460232,111.41,111.37,38.30635745]
[1644464027322,81.78460232,111.41,111.37,38.30635745]
[1644464027617,1.2315261,111.4,111.37,38.30635745]
[1644464027818,6.06439994,111.39,111.37,38.30635745]
[1644464028121,6.06439994,111.39,111.36,13.4711]
[1644464028819,1.2315261,111.4,111.36,13.4711]
[1644464029120,1.2315261,111.4,111.37,54.42675327]
[1644464029418,25.20318057,111.41,111.37,54.42675327]
[1644464029618,25.1698261,111.41,111.37,54.42675327]
[1644464036728,1.2315261,111.41,111.37,54.42675327]
[1644464037329,14.7015261,111.42,111.37,54.42675327]
[1644464038348,1.2315261,111.42,111.37,54.42675327]
[1644464038548,1.26488057,111.43,111.39,13.4661]
[1644464038751,1.2315261,111.43,111.39,13.4661]
[1644464038947,1.2315261,111.44,111.39,13.4661]
[1644464039149,1.2315261,111.44,111.4,47.26972935]
[1644464039550,1.2315261,111.44,111.4,60.73542935]
[1644464040051,1.2315261,111.44,111.4,47.26972935]
[1644464040251,14.6980261,111.45,111.4,47.26972935]
[1644464040653,1.2315261,111.44,111.4,47.26972935]
[1644464045457,49.39551002,111.44,111.4,47.26972935]
[1644464045656,62.86281002,111.44,111.38,22.6316]
[1644464045858,4.487,111.43,111.38,22.6316]
[1644464046062,1.2315261,111.42,111.38,22.6316]
[1644464046257,1.2315261,111.42,111.37,12.46]
[1644464046462,1.2315261,111.43,111.37,12.46]
[1644464046659,1.2315261,111.43,111.36,24.2498]
[1644464046660,17.9574,111.42,111.36,24.2498]
[1644464047058,46.08596556,111.41,111.33,50.59052001]
[1644464047258,43.85616185,111.39,111.35,35.87876467]
[1644464048057,13.4751,111.39,111.35,35.87876467]
[1644464048258,14.7066261,111.39,111.35,35.87876467]
[1644464049061,53.21693269,111.39,111.35,35.87876467]
[1644464049860,14.7066261,111.39,111.35,35.87876467]
[1644464050558,14.7066261,111.39,111.31,25.9347]
[1644464050759,37.59348057,111.39,111.31,12.71]
[1644464050961,13.4783,111.36,111.31,12.46]
[1644464051160,22.0933,111.36,111.31,12.46]
[1644464051563,59.38197413,111.36,111.31,59.707893]
[1644464051960,22.0933,111.36,111.31,59.707893]
[1644464052863,57.85621359,111.36,111.31,59.707893]
[1644464053361,62.34621359,111.36,111.31,59.707893]
[1644464054463,22.0933,111.36,111.31,59.707893]
[1644464054665,13.4783,111.36,111.31,59.707893]
[1644464055366,54.45816114,111.36,111.31,59.707893]
[1644464055565,54.45816114,111.36,111.31,12.46]
[1644464056463,54.45816114,111.36,111.31,50.08597836]
[1644464057165,13.4783,111.36,111.31,50.08597836]
[1644464058167,50.89325759,111.36,111.31,50.08597836]
[1644464058568,50.89325759,111.36,111.31,12.46]
[1644464058768,4.49,111.35,111.31,12.46]
[1644464058968,65.72325759,111.36,111.31,12.46]
[1644464059369,61.23225759,111.36,111.31,12.46]
[1644464059569,61.23225759,111.36,111.31,50.0934429]
[1644464061466,23.8173,111.36,111.31,50.0934429]
[1644464062067,13.4783,111.36,111.31,50.0934429]
[1644464062370,1.26488057,111.38,111.33,39.17807218]
[1644464062568,1.2315261,111.39,111.35,34.21293976]
[1644464062769,0.03335447,111.4,111.35,34.46293976]
[1644464062976,45.72423476,111.42,111.35,46.92293976]
[1644464063168,50.21323476,111.42,111.36,1.78784983]
[1644464063368,45.69088029,111.42,111.37,43.09976122]
[1644464063568,45.69088029,111.42,111.37,56.56916122]
[1644464063769,1.2315261,111.42,111.37,56.56916122]
[1644464064170,1.2315261,111.43,111.37,56.56916122]
[1644464064378,5.7195261,111.43,111.37,56.56916122]
[1644464064570,1.2315261,111.42,111.37,56.56916122]
[1644464064770,38.59407383,111.42,111.37,56.56916122]
[1644464066370,5.7195261,111.43,111.37,56.56916122]
[1644464066974,5.7195261,111.43,111.37,58.60701105]
[1644464067170,4.488,111.43,111.37,58.60701105]
[1644464067372,47.26870404,111.43,111.37,58.35701105]
[1644464067571,42.78070404,111.43,111.36,30.4189]
[1644464067838,4.488,111.42,111.36,30.4189]
[1644464067971,4.488,111.42,111.36,16.948]
[1644464068171,4.5217358,111.42,111.36,16.948]
[1644464068574,17.9935358,111.42,111.36,16.948]
[1644464069770,19.2250619,111.42,111.36,16.948]
[1644464071073,1.2315261,111.42,111.37,1.78784983]
[1644464071274,1.2652619,111.43,111.37,14.49784983]
[1644464071474,0.0337358,111.43,111.37,14.24784983]
[1644464071876,72.39200403,111.44,111.37,14.24784983]
[1644464072076,72.39200403,111.44,111.38,13.4684]
[1644464072077,0.0337358,111.43,111.38,13.4684]
[1644464072275,0.0337358,111.43,111.39,36.13519352]
[1644464072875,76.88000403,111.44,111.39,36.13519352]
[1644464073077,72.39200403,111.44,111.39,36.13519352]
[1644464073277,72.42573983,111.44,111.39,36.13519352]
[1644464073478,85.89453983,111.44,111.38,13.4684]
[1644464073876,85.89453983,111.44,111.37,16.947]
[1644464073877,85.89453983,111.44,111.37,30.417]
[1644464074077,5.7195261,111.43,111.37,30.417]
[1644464074477,5.7532619,111.43,111.37,30.417]
[1644464074681,5.7532619,111.43,111.37,78.51098579]
[1644464075179,5.7532619,111.43,111.37,30.417]
[1644464075380,1.2652619,111.43,111.37,25.93]
[1644464075780,14.7352619,111.43,111.37,25.93]
[1644464076580,14.7352619,111.43,111.35,28.79324983]
[1644464076779,4.5217358,111.42,111.34,12.46]
[1644464076984,13.4744,111.4,111.32,30.7556]
[1644464077184,4.5227358,111.39,111.32,43.2156]
[1644464077381,0.0337358,111.38,111.32,37.2156]
[1644464077581,46.55737422,111.38,111.33,48.39199048]
[1644464077782,46.52363842,111.38,111.33,48.39199048]
[1644464078081,46.55737422,111.38,111.33,48.39199048]
[1644464078683,60.03307422,111.38,111.33,48.39199048]
[1644464078881,60.03307422,111.38,111.32,50.6915]
[1644464079083,68.72607422,111.38,111.32,50.6915]
[1644464079485,68.72607422,111.38,111.32,25.9359]
[1644464079688,68.72607422,111.38,111.3,51.19054983]
[1644464079689,4.49,111.37,111.3,4.488]
[1644464079992,39.33816308,111.34,111.3,4.488]
[1644464080187,43.82916308,111.34,111.28,43.60232538]
[1644464081686,13.4823,111.33,111.28,43.60232538]
[1644464083388,13.4823,111.33,111.28,57.08282538]
[1644464084090,13.4801,111.34,111.28,57.08282538]
[1644464084289,13.4801,111.34,111.28,57.33282538]
[1644464084489,13.4801,111.34,111.28,57.08282538]
[1644464085289,17.9711,111.34,111.28,57.08282538]
[1644464087209,17.9711,111.34,111.28,57.33282538]
[1644464087609,13.4801,111.34,111.27,4.491]
[1644464087811,26.3721,111.34,111.23,4.492]
[1644464088011,13.4875,111.3,111.22,4.492]
[1644464088210,13.4875,111.3,111.21,41.4769]
[1644464088610,35.52947298,111.29,111.22,46.07595142]
[1644464088810,35.52947298,111.29,111.22,59.56305142]
[1644464089109,35.52947298,111.29,111.22,59.81305142]
[1644464089309,35.52947298,111.29,111.22,59.56305142]
[1644464089809,49.01587298,111.29,111.22,59.56305142]
[1644464090712,49.01587298,111.29,111.22,59.81305142]
[1644464091512,49.01587298,111.29,111.23,4.494]
[1644464091714,49.01587298,111.29,111.23,4.744]
[1644464092717,53.50887298,111.29,111.23,0.25]
[1644464093214,53.50887298,111.29,111.22,59.81305142]
[1644464094514,53.50887298,111.29,111.22,13.4871]
[1644464094714,53.50887298,111.29,111.19,16.953]
[1644464094715,62.15787298,111.29,111.19,16.953]
[1644464094914,62.15787298,111.29,111.19,4.493]
[1644464095315,62.15787298,111.29,111.19,16.953]
[1644464095517,24.4308,111.28,111.19,16.953]
[1644464095715,17.9838,111.27,111.2,46.91649126]
[1644464097920,17.9838,111.27,111.18,13.4905]
[1644464097921,102.27,111.26,111.12,27.5826]
[1644464098123,13.4992,111.22,111.12,4.494]
[1644464098320,4.497,111.21,111.09,30.53273577]
[1644464098523,4.497,111.21,111.1,12.46]
[1644464098919,34.7160837,111.2,111.11,37.09028258]
[1644464099120,4.498,111.19,111.11,37.09028258]
[1644464099819,13.5016,111.18,111.11,37.09028258]
[1644464100020,13.5016,111.18,111.11,38.87813241]
[1644464100219,13.5016,111.18,111.11,37.09028258]
[1644464100423,13.5016,111.18,111.11,41.58828258]
[1644464100623,17.9996,111.18,111.11,37.09028258]
[1644464101822,13.5016,111.18,111.11,37.09028258]
[1644464102225,18.001,111.17,111.11,37.09028258]
[1644464102827,13.503,111.17,111.11,37.09028258]
[1644464104130,17.9982,111.19,111.11,37.09028258]
[1644464104427,17.9982,111.19,111.11,49.80028258]
[1644464104629,13.5002,111.19,111.11,49.80028258]
[1644464105930,17.9982,111.19,111.11,49.80028258]
[1644464106127,17.9982,111.19,111.11,49.55028258]
[1644464107230,13.5002,111.19,111.11,49.55028258]
[1644464107630,13.5002,111.19,111.11,65.08713241]
[1644464108030,13.5002,111.19,111.11,63.04928258]
[1644464108434,13.5002,111.19,111.12,1.78784983]
[1644464108630,13.5002,111.19,111.12,14.24784983]
[1644464108832,13.5002,111.19,111.12,16.958]
[1644464109734,13.5002,111.19,111.12,17.208]
[1644464109933,13.5002,111.19,111.12,18.99584983]
[1644464110333,13.5002,111.19,111.12,17.208]
[1644464110634,13.5002,111.19,111.12,4.748]
[1644464111037,17.9988,111.18,111.12,4.748]
[1644464111236,13.5008,111.18,111.12,4.748]
[1644464112638,13.5008,111.18,111.12,0.25]
[1644464113062,13.5008,111.18,111.11,50.83978258]
[1644464113463,13.5008,111.18,111.11,52.62763241]
[1644464114462,4.498,111.2,111.12,12.46]
[1644464114663,45.944,111.22,111.14,13.4949]
[1644464114664,4.498,111.22,111.14,13.4949]
[1644464114865,4.497,111.24,111.15,12.46]
[1644464115263,4.497,111.24,111.15,12.71]
[1644464115462,38.25949645,111.22,111.16,38.55037188]
[1644464115663,4.496,111.21,111.16,38.55037188]
[1644464116762,17.993,111.21,111.16,38.55037188]
[1644464117165,48.10849757,111.2,111.16,38.55037188]
[1644464117765,4.496,111.21,111.16,38.55037188]
[1644464118164,4.497,111.22,111.16,38.55037188]
[1644464118465,4.497,111.22,111.13,35.3988]
[1644464118670,13.4983,111.2,111.13,35.6488]
[1644464118865,13.4983,111.2,111.13,26.2076]
[1644464119368,57.79390262,111.2,111.14,45.90028181]
[1644464120968,57.79390262,111.2,111.12,23.0996]
[1644464121171,13.5008,111.18,111.1,39.5427]
[1644464121468,4.498,111.17,111.1,35.0457]
[1644464121668,28.9001,111.19,111.1,35.0457]
[1644464121869,28.9001,111.19,111.11,57.08571545]
[1644464122571,39.30599803,111.18,111.11,57.08571545]
[1644464123272,39.30599803,111.18,111.11,57.33571545]
[1644464123673,52.80609803,111.18,111.11,57.33571545]
[1644464123871,4.498,111.17,111.11,57.33571545]
[1644464124073,4.498,111.17,111.11,57.08571545]
[1644464124274,4.498,111.17,111.11,57.33571545]
[1644464125073,17.9992,111.17,111.07,1.27733577]
[1644464125274,26.0142,111.17,111.05,1.27733577]
[1644464125474,23.7793,111.16,111.05,1.27733577]
[1644464125676,25.98649534,111.16,111.04,5.77733577]
[1644464125974,25.98649534,111.16,111.04,40.06554899]
[1644464125975,45.94116524,111.14,111.04,40.06554899]
[1644464126178,40.52851063,111.12,111.04,40.06554899]
[1644464126375,13.5115,111.09,111.04,40.06554899]
[1644464126576,22.2135,111.09,111.04,40.06554899]
[1644464126774,8.702,111.09,111.04,40.06554899]
[1644464126974,8.702,111.09,111.04,40.31554899]
[1644464127576,4.501,111.11,111.04,40.31554899]
[1644464127776,13.5097,111.1,111.04,40.31554899]
[1644464129577,4.501,111.11,111.04,53.82374899]
[1644464129978,42.01009423,111.1,111.02,60.8025]
[1644464130180,4.502,111.09,111.01,4.501]
[1644464130578,4.502,111.09,110.99,12.46]
[1644464130579,13.5127,111.08,110.99,12.46]
[1644464130778,4.503,111.07,110.99,12.46]
[1644464130979,38.75726763,111.07,111.0,40.01536216]
[1644464131181,38.75726763,111.07,111.01,6.0]
[1644464131380,38.75726763,111.07,111.02,46.19429388]
[1644464131578,13.5151,111.06,111.02,46.19429388]
[1644464131781,4.502,111.05,111.0,6.0]
[1644464131978,7.401,111.05,110.99,6.0]
[1644464132178,4.503,111.04,110.99,6.0]
[1644464132582,4.503,111.04,111.0,0.16126002]
[1644464132781,4.503,111.04,111.0,40.72157857]
[1644464133184,4.503,111.04,111.01,6.0]
[1644464133384,45.0539,111.08,111.01,6.0]
[1644464133385,6.06439994,111.03,111.01,6.0]
[1644464133786,16.002,111.07,111.01,6.0]
[1644464134186,16.002,111.07,111.02,45.64933749]
[1644464134786,13.5148,111.06,111.02,45.64933749]
[1644464135886,4.503,111.07,111.02,45.89933749]
[1644464136089,13.5132,111.08,111.02,45.89933749]
[1644464136291,4.502,111.07,111.03,0.16126002]
[1644464137295,13.5132,111.08,111.03,0.16126002]
[1644464138797,4.502,111.07,111.03,0.16126002]
[1644464138994,13.5132,111.08,111.03,0.16126002]
[1644464139717,65.8632,111.1,111.03,0.16126002]
[1644464140917,13.5112,111.09,111.03,0.16126002]
[1644464141123,24.1342,111.09,111.03,0.16126002]
[1644464142121,28.6362,111.09,111.03,0.16126002]
[1644464144025,13.5153,111.07,111.03,0.16126002]
[1644464144221,4.502,111.06,111.03,0.16126002]
[1644464144422,10.757,111.06,111.03,0.16126002]
[1644464144621,6.06439994,111.05,111.03,0.16126002]
[1644464145420,4.502,111.08,111.03,0.16126002]
[1644464146827,13.5133,111.07,111.03,0.16126002]
[1644464147231,48.79194907,111.06,111.03,0.16126002]
[1644464147435,6.06439994,111.05,111.03,0.16126002]
[1644464147631,6.06439994,111.05,111.02,0.16126002]
[1644464148832,19.58129994,111.05,111.02,0.16126002]
[1644464150632,19.58129994,111.05,110.98,65.22261238]
[1644464150833,24.08429994,111.05,110.99,0.16126002]
[1644464151640,24.08429994,111.05,110.96,4.503]
[1644464151641,13.5237,111.02,110.96,1.79084983]
[1644464151842,4.503,111.01,110.93,4.503]
[1644464152036,4.503,111.01,110.9,4.505]
[1644464152336,64.29019534,111.0,110.86,47.5915]
[1644464152537,43.48536567,110.99,110.87,51.40488337]
[1644464152736,13.528,110.96,110.87,51.40488337]
[1644464152936,20.582,110.96,110.87,50.90488337]
[1644464153337,20.582,110.96,110.89,35.3919329]
[1644464153737,20.582,110.96,110.91,35.95473295]
[1644464154340,20.582,110.96,110.91,36.20473295]
[1644464154740,48.69675102,110.95,110.91,35.95473295]
[1644464154943,13.5299,110.94,110.92,8.91744035]
[1644464155341,0.25,110.94,110.92,8.91744035]
[1644464155742,6.06439994,110.93,110.92,8.91744035]
[1644464155949,16.84139994,110.93,110.92,8.91744035]
[1644464156543,16.84139994,110.93,110.87,4.007]
[1644464156754,16.84139994,110.93,110.82,1.27733577]
[1644464156755,18.46,110.92,110.82,1.27733577]
[1644464156944,4.509,110.91,110.8,0.45108914]
[1644464157444,53.95880644,110.9,110.8,0.45108914]
[1644464157645,4.51,110.89,110.8,0.45108914]
[1644464157844,49.73411001,110.88,110.8,0.45108914]
[1644464158050,48.58176302,110.86,110.8,0.45108914]
[1644464158245,36.12213821,110.84,110.8,0.45108914]
[1644464158450,12.46,110.84,110.73,4.51]
[1644464158646,12.46,110.84,110.71,114.52582203]
[1644464158647,12.46,110.84,110.72,3.513]
[1644464158845,4.513,110.83,110.71,4.73882203]
[1644464159045,13.55,110.8,110.71,4.73882203]
[1644464159248,34.169,110.8,110.71,0.22582203]
[1644464159446,53.11058998,110.79,110.71,0.22582203]
[1644464159847,12.46,110.78,110.71,0.22582203]
[1644464160047,4.514,110.77,110.71,0.22582203]
[1644464160246,18.46,110.76,110.71,0.22582203]
[1644464160448,4.515,110.75,110.71,0.22582203]
[1644464160646,16.975,110.75,110.71,0.22582203]
[1644464161647,4.515,110.75,110.71,0.22582203]
[1644464163249,34.71928902,110.74,110.71,0.22582203]
[1644464163447,4.515,110.73,110.71,0.22582203]
[1644464163647,9.073,110.74,110.71,0.22582203]
[1644464164050,6.06439994,110.73,110.71,0.22582203]
[1644464164848,9.073,110.74,110.71,0.22582203]
[1644464165049,9.073,110.74,110.72,3.03219997]
[1644464165249,9.073,110.74,110.72,3.28219997]
[1644464165475,4.515,110.73,110.72,3.28219997]
[1644464165654,9.073,110.74,110.72,44.69824817]
[1644464166053,9.073,110.74,110.72,53.62984995]
[1644464166254,10.698,110.77,110.72,53.62984995]
[1644464166454,4.514,110.76,110.72,53.37984995]
[1644464166656,10.926,110.76,110.72,53.37984995]
[1644464167059,2.42628585,110.76,110.72,53.37984995]
[1644464168055,2.42628585,110.76,110.72,53.62984995]
[1644464168255,8.159,110.8,110.72,53.62984995]
[1644464168457,10.514,110.79,110.72,53.62984995]
[1644464168656,14.526,110.79,110.72,58.14284995]
[1644464169456,14.776,110.79,110.72,58.14284995]
[1644464169758,14.776,110.79,110.74,39.21663874]
[1644464169956,4.514,110.78,110.74,39.21663874]
[1644464170155,14.776,110.79,110.74,39.46663874]
[1644464170357,14.776,110.79,110.75,8.93160178]
[1644464170957,14.776,110.79,110.76,40.7034206]
[1644464171360,14.776,110.79,110.77,6.0596953]
[1644464171559,14.776,110.79,110.75,8.93160178]
[1644464172564,4.513,110.78,110.75,8.93160178]
[1644464172764,4.513,110.78,110.76,6.0596953]
[1644464172981,4.513,110.78,110.75,8.93160178]
[1644464173181,14.776,110.79,110.75,8.93160178]
[1644464174082,14.776,110.79,110.76,39.36638072]
[1644464174282,6.0,110.79,110.76,39.36638072]
[1644464174483,6.0,110.79,110.77,6.0596953]
[1644464174683,4.514,110.82,110.78,38.17280852]
[1644464175284,4.514,110.82,110.77,8.93160178]
[1644464175484,13.775,110.82,110.77,8.93160178]
[1644464175683,6.0,110.81,110.77,8.93160178]
[1644464176287,43.99270175,110.8,110.77,8.93160178]
[1644464176489,4.513,110.79,110.77,8.93160178]
[1644464177290,6.0,110.81,110.77,8.93160178]
[1644464177493,4.513,110.84,110.77,8.93160178]
[1644464177689,4.513,110.84,110.77,9.18160178]
[1644464177994,4.513,110.84,110.78,38.16069097]
[1644464178188,4.513,110.84,110.78,38.41069097]
[1644464178394,4.513,110.84,110.8,42.47199597]
[1644464178589,4.513,110.84,110.79,8.93160178]
[1644464178790,55.94366481,110.85,110.79,8.93160178]
[1644464179795,4.511,110.84,110.8,36.58325226]
[1644464180595,4.761,110.84,110.8,36.58325226]
[1644464180996,4.761,110.84,110.79,8.93160178]
[1644464181496,6.0,110.83,110.79,8.93160178]
[1644464181696,4.511,110.82,110.79,8.93160178]
[1644464181895,4.511,110.82,110.78,48.42765117]
[1644464182296,4.511,110.82,110.77,8.93160178]
[1644464182498,4.511,110.82,110.77,9.18160178]
[1644464182896,41.00902604,110.83,110.77,9.18160178]
[1644464183297,41.00902604,110.83,110.78,37.32017645]
[1644464183698,41.00902604,110.83,110.77,9.18160178]
[1644464184297,4.511,110.82,110.77,8.93160178]
[1644464184498,10.511,110.82,110.77,8.93160178]
[1644464184899,36.48878197,110.81,110.75,8.93160178]
[1644464185102,44.79376524,110.79,110.75,8.93160178]
[1644464185299,4.513,110.78,110.75,8.93160178]
[1644464185503,4.513,110.78,110.76,3.03219997]
[1644464185699,4.513,110.78,110.75,8.93160178]
[1644464186608,4.513,110.78,110.75,54.97419434]
[1644464186804,13.5483,110.81,110.76,3.03219997]
[1644464187006,4.513,110.8,110.76,3.03219997]
[1644464188106,4.513,110.8,110.77,8.93160178]
[1644464188306,61.36659861,110.81,110.77,8.93160178]
[1644464188508,56.85359861,110.81,110.77,8.93160178]
[1644464188706,6.0,110.8,110.77,8.93160178]
[1644464188906,4.513,110.79,110.77,8.93160178]
[1644464189707,10.513,110.8,110.78,3.03219997]
[1644464189906,6.0,110.8,110.78,3.03219997]
[1644464190315,6.0,110.79,110.78,3.03219997]
[1644464190710,6.0,110.79,110.77,8.93160178]
[1644464190908,4.513,110.81,110.77,8.93160178]
[1644464191108,10.513,110.81,110.77,8.93160178]
[1644464191307,10.513,110.81,110.73,12.46]
[1644464191308,46.92961621,110.8,110.74,54.97078513]
[1644464191730,46.92961621,110.8,110.74,55.22078513]
[1644464191910,4.513,110.81,110.74,55.22078513]
[1644464192414,6.0,110.8,110.74,55.22078513]
[1644464193509,6.0,110.8,110.74,56.991045]
[1644464193711,6.0,110.8,110.74,55.22078513]
[1644464194111,13.5466,110.82,110.74,55.22078513]
[1644464194311,6.0,110.81,110.74,55.22078513]
[1644464194712,6.0,110.81,110.74,67.68078513]
[1644464195112,6.25,110.81,110.74,67.68078513]
[1644464196314,48.36182737,110.81,110.74,67.68078513]
[1644464196515,56.32882737,110.81,110.74,67.68078513]
[1644464196713,4.513,110.8,110.74,67.68078513]
[1644464196916,56.0998261,110.85,110.74,67.68078513]
[1644464197120,114.57706939,110.88,110.74,68.9581209]
[1644464197121,4.512,110.84,110.74,68.9581209]
[1644464197316,3.002,110.84,110.75,12.28125987]
[1644464197523,1.2315261,110.88,110.77,0.32356974]
[1644464197718,1.2315261,110.89,110.78,16.971]
[1644464197919,45.0917446,110.9,110.79,179.29974421]
[1644464198121,43.8602185,110.9,110.82,46.03918335]
[1644464198320,43.8602185,110.9,110.83,4.51]
[1644464198518,45.0917446,110.9,110.82,58.49918335]
[1644464199019,58.6291446,110.9,110.82,58.49918335]
[1644464199244,58.6291446,110.9,110.82,58.74918335]
[1644464199438,45.0917446,110.9,110.82,58.74918335]
[1644464199637,43.8602185,110.9,110.82,63.25918335]
[1644464199841,44.1102185,110.9,110.82,63.25918335]
[1644464200238,1.2315261,110.91,110.82,63.25918335]
[1644464200440,37.5289,110.92,110.82,63.25918335]
[1644464200441,25.2249261,110.92,110.82,63.25918335]
[1644464200636,25.2249261,110.92,110.82,76.79318335]
[1644464201139,25.2249261,110.92,110.84,23.48974421]
[1644464201340,25.2249261,110.92,110.86,39.81453191]
[1644464201539,48.78497766,110.91,110.86,39.81453191]
[1644464202240,49.03497766,110.91,110.86,39.81453191]
[1644464202440,48.78497766,110.91,110.86,39.81453191]
[1644464202642,14.7651261,110.93,110.86,39.81453191]
[1644464202841,6.0,110.92,110.86,39.81453191]
[1644464203841,0.25,110.92,110.86,39.81453191]
[1644464204043,0.25,110.92,110.87,8.93160178]
[1644464204247,13.5336,110.93,110.87,8.93160178]
[1644464204444,1.2315261,110.94,110.87,13.43960178]
[1644464204644,1.2315261,110.94,110.87,13.68960178]
[1644464204845,1.2315261,110.95,110.88,34.22239565]
[1644464205043,126.6763,110.99,110.88,46.68239565]
[1644464205044,1.2315261,110.96,110.88,46.68239565]
[1644464205244,1.2315261,110.96,110.88,46.93239565]
[1644464205849,39.97471099,110.96,110.88,46.93239565]
[1644464206146,6.0,110.95,110.88,46.93239565]
[1644464206745,6.0,110.95,110.88,60.45949565]
[1644464207145,6.0,110.95,110.89,8.93160178]
[1644464207344,6.0,110.95,110.9,35.63019153]
[1644464207844,13.5293,110.97,110.9,35.63019153]
[1644464208249,13.5293,110.97,110.9,40.13719153]
[1644464208646,51.17427195,110.97,110.9,40.13719153]
[1644464209046,13.5293,110.97,110.9,40.13719153]
[1644464209248,61.6865,110.99,110.9,52.84719153]
[1644464209646,61.6865,110.99,110.9,48.34019153]
[1644464210046,43.79548982,110.98,110.9,48.34019153]
[1644464210249,43.79548982,110.98,110.91,4.506]
[1644464210447,57.32128982,110.98,110.92,33.89873603]
[1644464210850,57.32128982,110.98,110.92,42.83033781]
[1644464211248,57.32128982,110.98,110.92,47.33633781]
[1644464211550,13.5258,110.98,110.92,47.33633781]
[1644464211750,13.5241,111.0,110.93,12.46]
[1644464211948,13.5241,111.0,110.93,16.965]
[1644464212148,6.0,110.99,110.93,17.215]
[1644464212349,13.5241,111.0,110.93,17.215]
[1644464212550,48.55481804,110.99,110.93,17.215]
[1644464213751,6.0,110.98,110.94,35.63019153]
[1644464213956,63.0089,111.02,110.95,4.506]
[1644464214152,46.3005261,111.05,110.95,4.506]
[1644464214360,45.069,111.05,110.95,4.756]
[1644464214553,45.069,111.05,110.96,8.93160178]
[1644464214754,1.2315261,111.06,110.96,9.18160178]
[1644464214956,13.517,111.06,110.97,51.91803603]
[1644464215155,94.08625396,111.08,110.97,61.8952959]
[1644464215454,94.08625396,111.08,110.99,35.63019153]
[1644464215653,94.08625396,111.08,110.99,35.88019153]
[1644464215953,94.08625396,111.08,110.99,37.6504514]
[1644464216156,94.33625396,111.08,110.99,37.6504514]
[1644464216353,46.38095396,111.08,110.99,37.6504514]
[1644464216554,1.2315261,111.09,110.99,63.6235514]
[1644464216856,1.2315261,111.1,111.0,4.502]
[1644464217154,48.8154261,111.11,111.01,1.77025987]
[1644464217354,48.8154261,111.11,111.02,4.502]
[1644464217355,47.5839,111.11,111.02,4.502]
[1644464217558,42.85562978,111.1,111.03,33.89873603]
[1644464218155,6.0,111.09,111.03,33.89873603]
[1644464219056,13.5124,111.1,111.03,33.89873603]
[1644464219256,6.0,111.09,111.03,33.89873603]
[1644464220358,6.0,111.09,111.03,34.14873603]
[1644464220756,47.5839,111.11,111.03,34.14873603]
[1644464220958,47.5839,111.11,111.04,8.93160178]
[1644464221160,13.0104,111.12,111.04,9.18160178]
[1644464221357,13.0104,111.12,111.05,35.63019153]
[1644464221758,13.0104,111.12,111.05,35.88019153]
[1644464222161,13.0104,111.12,111.04,8.93160178]
[1644464222359,22.8279261,111.12,111.04,8.93160178]
[1644464222559,1.2315261,111.11,111.04,8.93160178]
[1644464222761,13.5138,111.09,111.04,8.93160178]
[1644464223161,36.58095938,111.08,111.04,8.93160178]
[1644464223764,6.0,111.07,111.04,8.93160178]
[1644464224564,6.0,111.07,110.96,4.502]
[1644464224761,6.0,111.07,110.95,16.963]
[1644464225367,53.3401,111.07,110.95,16.963]
[1644464225571,13.5183,111.05,110.96,37.14259727]
[1644464225765,45.72998665,111.04,110.97,4.503]
[1644464226166,45.72998665,111.04,110.96,37.14259727]
[1644464226565,45.72998665,111.04,110.95,12.46]
[1644464226766,13.5205,111.03,110.95,12.46]
[1644464226966,13.5205,111.03,110.94,23.5193]
[1644464227267,22.0625,111.03,110.92,35.5721]
[1644464227470,69.8062,111.03,110.92,23.1121]
[1644464227669,69.8062,111.03,110.92,68.29912627]
[1644464227670,42.65433458,111.02,110.92,68.29912627]
[1644464227869,42.65433458,111.02,110.93,4.505]
[1644464228067,13.5228,111.01,110.94,24.34190129]